{"text_format":"3","workbook":"xlsx","n_sheets":4,"sheets":["Έναρξη","Προϋπολογισμός γάμου","Ένδυση-Δεξίωση-Μουσική-Φωτογρ.","Διακοσμ.-Λουλούδια-Δώρα-Ταξίδι"],"not_rendered":{"charts":1,"defined_names":22},"read":"whole","date_system":"1900"}

{"sheet":"Έναρξη","index":0,"n_rows":7,"n_cols":2,"rows_kept":7}
[null,"ΠΛΗΡΟΦΟΡΙΕΣ ΓΙΑ ΑΥΤΟ ΤΟ ΠΡΟΤΥΠΟ"]
[null,"Χρησιμοποιήστε αυτό το πρότυπο για να παρακολουθείτε τα έξοδα του γάμου σας."]
[null,"Εισαγάγετε τα εκτιμώμενα και τα πραγματικά κόστη που προκύπτουν σε διάφορες κατηγορίες σε ξεχωριστά φύλλα εργασίας."]
[null,"Η σύνοψη προϋπολογισμού γάμου και το γράφημα ενημερώνονται αυτόματα για εσάς."]
[null,"Σημείωση: "]
[null,"Στη στήλη A σε κάθε φύλλο εργασίας παρέχονται πρόσθετες οδηγίες. Αυτό το κείμενο είναι κρυφό σκόπιμα. Για να καταργήσετε το κείμενο, επιλέξτε τη στήλη A και, στη συνέχεια, πατήστε το πλήκτρο DELETE. Για να εμφανίσετε το κείμενο, επιλέξτε τη στήλη A και, στη συνέχεια, αλλάξτε το χρώμα γραμματοσειράς."]
[null,"Για να μάθετε περισσότερα για τους πίνακες, πατήστε το πλήκτρο SHIFT και, στη συνέχεια, F10 μέσα σε έναν πίνακα, επιλέξτε \"ΠΙΝΑΚΑΣ\" και, στη συνέχεια, επιλέξτε \"ΕΝΑΛΛΑΚΤΙΚΟ ΚΕΙΜΕΝΟ\"."]

{"sheet":"Προϋπολογισμός γάμου","index":1,"n_rows":19,"n_cols":6,"rows_kept":19,"merged":[[2,2,4,5],[18,2,42,5]]}
["Δημιουργήστε έναν Προϋπολογισμός γάμου σε αυτό το φύλλο εργασίας. Εισαγάγετε τις λεπτομέρειες στους πίνακες στο φύλλο εργασίας Ένδυση-Δεξίωση-Μουσική-Εκτυπώσεις και στο φύλλο εργασίας Διακόσμηση-Λουλούδια-Δώρα-Ταξίδια για την ενημέρωση της σύνοψης και του γραφήματος στο τρέχον φύλλο εργασίας. Σε διάφορα κελιά σε αυτήν τη στήλη βρίσκονται χρήσιμες οδηγίες για τον τρόπο χρήσης αυτού του φύλλου εργασίας. Η ετικέτα \"Ημερομηνία γάμου\" βρίσκεται στο κελί C1.",null,"Ημερομηνία γάμου:"]
["Εισαγάγετε την ημερομηνία γάμου στο κελί C2. Οι Ημέρες που απομένουν υπολογίζονται αυτόματα στο κελί E2.",null,{"$f":"TODAY()+365","v":"2019-12-04"},"Ημέρες που απομένουν:",{"$f":"C2-TODAY()","v":365}]
["Ο τίτλος αυτού του φύλλου εργασίας βρίσκεται στο κελί C3. Η επόμενη οδηγία βρίσκεται στο κελί A6.",null,"Σύνοψη προϋπολογισμού γάμου"]
[]
[]
["Ο πίνακας σύνοψη προϋπολογισμού που ξεκινά από το κελί C6 ενημερώνεται αυτόματα. Η επόμενη οδηγία βρίσκεται στο κελί A19.",null,"ΚΑΤΗΓΟΡΙΑ","ΕΚΤΙΜΩΜΕΝΑ","ΠΡΑΓΜΑΤΙΚΑ","ΕΠΑΝΩ/ΚΑΤΩ"]
[null,null,"Ένδυση",{"$f":"Σύνολο_Εκτιμ_εξόδων_Ένδυσης","v":{"v":9490,"d":"9,490.00"}},{"$f":"Σύνολο_Πραγμ_εξόδων_Ένδυσης","v":{"v":9770,"d":"9,770.00"}},{"$f":"ΣύνοψηΠροϋπολογισμού[[#This Row],[ΕΚΤΙΜΩΜΕΝΑ]]-ΣύνοψηΠροϋπολογισμού[[#This Row],[ΠΡΑΓΜΑΤΙΚΑ]]","v":{"v":-280,"d":"-280.00"}}]
[null,null,"Δεξίωση",{"$f":"Σύνολο_Εκτιμ_εξόδων_Δεξίωσης","v":{"v":1050,"d":"1,050.00"}},{"$f":"Σύνολο_Πραγμ_εξόδων_Δεξίωσης","v":{"v":928,"d":"928.00"}},{"$f":"ΣύνοψηΠροϋπολογισμού[[#This Row],[ΕΚΤΙΜΩΜΕΝΑ]]-ΣύνοψηΠροϋπολογισμού[[#This Row],[ΠΡΑΓΜΑΤΙΚΑ]]","v":{"v":122,"d":"122.00"}}]
[null,null,"Μουσική",{"$f":"Σύνολο_Εκτιμ_εξόδων_Μουσικής_Ψυχαγωγίας","v":{"v":600,"d":"600.00"}},{"$f":"Σύνολο_Πραγμ_εξόδων_Μουσικής_Ψυχαγωγίας","v":{"v":400,"d":"400.00"}},{"$f":"ΣύνοψηΠροϋπολογισμού[[#This Row],[ΕΚΤΙΜΩΜΕΝΑ]]-ΣύνοψηΠροϋπολογισμού[[#This Row],[ΠΡΑΓΜΑΤΙΚΑ]]","v":{"v":200,"d":"200.00"}}]
[null,null,"Εκτυπώσεις",{"$f":"Σύνολο_Εκτιμ_εξόδων_Επιστολόχαρτων","v":{"v":935,"d":"935.00"}},{"$f":"Σύνολο_Πραγμ_εξόδων_Επιστολόχαρτων","v":{"v":870,"d":"870.00"}},{"$f":"ΣύνοψηΠροϋπολογισμού[[#This Row],[ΕΚΤΙΜΩΜΕΝΑ]]-ΣύνοψηΠροϋπολογισμού[[#This Row],[ΠΡΑΓΜΑΤΙΚΑ]]","v":{"v":65,"d":"65.00"}}]
[null,null,"Φωτογράφιση",{"$f":"Σύνολο_Εκτιμ_εξόδων_Φωτογράφισης","v":{"v":1625,"d":"1,625.00"}},{"$f":"Σύνολο_Πραγμ_εξόδων_Φωτογράφισης","v":{"v":1575,"d":"1,575.00"}},{"$f":"ΣύνοψηΠροϋπολογισμού[[#This Row],[ΕΚΤΙΜΩΜΕΝΑ]]-ΣύνοψηΠροϋπολογισμού[[#This Row],[ΠΡΑΓΜΑΤΙΚΑ]]","v":{"v":50,"d":"50.00"}}]
[null,null,"Διακοσμητικά",{"$f":"Σύνολο_Εκτιμ_εξόδων_Διακοσμήσεων","v":{"v":700,"d":"700.00"}},{"$f":"Σύνολο_Πραγμ_εξόδων_Διακοσμήσεων","v":{"v":720,"d":"720.00"}},{"$f":"ΣύνοψηΠροϋπολογισμού[[#This Row],[ΕΚΤΙΜΩΜΕΝΑ]]-ΣύνοψηΠροϋπολογισμού[[#This Row],[ΠΡΑΓΜΑΤΙΚΑ]]","v":{"v":-20,"d":"-20.00"}}]
[null,null,"Λουλούδια",{"$f":"Σύνολο_Εκτιμ_εξόδων_Λουλουδιών","v":{"v":900,"d":"900.00"}},{"$f":"Σύνολο_Πραγμ_εξόδων_Λουλουδιών","v":{"v":850,"d":"850.00"}},{"$f":"ΣύνοψηΠροϋπολογισμού[[#This Row],[ΕΚΤΙΜΩΜΕΝΑ]]-ΣύνοψηΠροϋπολογισμού[[#This Row],[ΠΡΑΓΜΑΤΙΚΑ]]","v":{"v":50,"d":"50.00"}}]
[null,null,"Δώρα",{"$f":"Σύνολο_Εκτιμ_εξόδων_Δώρων","v":{"v":1345,"d":"1,345.00"}},{"$f":"Σύνολο_Πραγμ_εξόδων_Δώρων","v":{"v":1075,"d":"1,075.00"}},{"$f":"ΣύνοψηΠροϋπολογισμού[[#This Row],[ΕΚΤΙΜΩΜΕΝΑ]]-ΣύνοψηΠροϋπολογισμού[[#This Row],[ΠΡΑΓΜΑΤΙΚΑ]]","v":{"v":270,"d":"270.00"}}]
[null,null,"Ταξίδια",{"$f":"Σύνολο_Εκτιμ_εξόδων_Ταξιδιών_Μετακινήσεων","v":{"v":100,"d":"100.00"}},{"$f":"Σύνολο_Πραγμ_εξόδων_Ταξιδιών_Μετακινήσεων","v":{"v":165,"d":"165.00"}},{"$f":"ΣύνοψηΠροϋπολογισμού[[#This Row],[ΕΚΤΙΜΩΜΕΝΑ]]-ΣύνοψηΠροϋπολογισμού[[#This Row],[ΠΡΑΓΜΑΤΙΚΑ]]","v":{"v":-65,"d":"-65.00"}}]
[null,null,"Άλλο",{"$f":"Σύνολο_Εκτιμ_Άλλων_Εξόδων","v":{"v":885,"d":"885.00"}},{"$f":"Σύνολο_Πραγμ_Άλλων_Εξόδων","v":{"v":1021,"d":"1,021.00"}},{"$f":"ΣύνοψηΠροϋπολογισμού[[#This Row],[ΕΚΤΙΜΩΜΕΝΑ]]-ΣύνοψηΠροϋπολογισμού[[#This Row],[ΠΡΑΓΜΑΤΙΚΑ]]","v":{"v":-136,"d":"-136.00"}}]
[null,null,"Συνολικά έξοδα",{"$f":"SUBTOTAL(109,ΣύνοψηΠροϋπολογισμού[ΕΚΤΙΜΩΜΕΝΑ])","v":{"v":17630,"d":"17,630.00"}},{"$f":"SUBTOTAL(109,ΣύνοψηΠροϋπολογισμού[ΠΡΑΓΜΑΤΙΚΑ])","v":{"v":17374,"d":"17,374.00"}},{"$f":"SUBTOTAL(109,ΣύνοψηΠροϋπολογισμού[ΕΠΑΝΩ/ΚΑΤΩ])","v":{"v":256,"d":"256.00"}}]
[]
["Το γράφημα πίτας στο κελί C19 ενημερώνεται αυτόματα.",null,"Το γράφημα πίτας που δείχνει το ποσοστό εξόδων κάθε κατηγορίας βρίσκεται σε αυτό το κελί."]

{"sheet":"Ένδυση-Δεξίωση-Μουσική-Φωτογρ.","index":2,"n_rows":56,"n_cols":6,"rows_kept":56,"merged":[[16,1,16,4],[28,1,28,4],[29,1,29,4],[35,1,35,4],[48,1,48,4]]}
["Εισαγάγετε τα εκτιμώμενα και τα πραγματικά κόστη για κάθε κατηγορία στους αντίστοιχους πίνακες σε αυτό το φύλλο εργασίας. Το ποσό επάνω ή κάτω υπολογίζεται αυτόματα. Η ετικέτα \"Ένδυση\" βρίσκεται στο κελί στα δεξιά. Σε διάφορα κελιά σε αυτήν τη στήλη βρίσκονται χρήσιμες οδηγίες για τον τρόπο χρήσης αυτού του φύλλου εργασίας. Πατήστε το κάτω βέλος για να ξεκινήσετε.","Ένδυση",{"$nulls":3}," "]
[" Εισαγάγετε λεπτομέρειες στον πίνακα \"Ένδυση\" που ξεκινάει στο κελί στα δεξιά. Η επόμενη οδηγία βρίσκεται στο κελί A18.","ΚΑΤΗΓΟΡΙΑ","ΕΚΤΙΜΩΜΕΝΑ","ΠΡΑΓΜΑΤΙΚΑ","ΕΠΑΝΩ/ΚΑΤΩ"," "]
[null,"Βέρα(ες)",{"v":1500,"d":"1,500.00"},{"v":1500,"d":"1,500.00"},{"$f":"'Ένδυση-Δεξίωση-Μουσική-Φωτογρ.'!$C3-'Ένδυση-Δεξίωση-Μουσική-Φωτογρ.'!$D3","v":{"v":0,"d":"0.00"}}]
[null,"Βέρα μελλονύμφου 1",{"v":2000,"d":"2,000.00"},{"v":2300,"d":"2,300.00"},{"$f":"'Ένδυση-Δεξίωση-Μουσική-Φωτογρ.'!$C4-'Ένδυση-Δεξίωση-Μουσική-Φωτογρ.'!$D4","v":{"v":-300,"d":"-300.00 "}}]
[null,"Νυφικό/κοστούμι μελλονύμφου 1",{"v":3000,"d":"3,000.00"},{"v":2750,"d":"2,750.00"},{"$f":"'Ένδυση-Δεξίωση-Μουσική-Φωτογρ.'!$C5-'Ένδυση-Δεξίωση-Μουσική-Φωτογρ.'!$D5","v":{"v":250,"d":"250.00"}}]
[null,"Πέπλο/Τιάρα μελλονύμφου 1",{"v":500,"d":"500.00"},{"v":500,"d":"500.00"},{"$f":"'Ένδυση-Δεξίωση-Μουσική-Φωτογρ.'!$C6-'Ένδυση-Δεξίωση-Μουσική-Φωτογρ.'!$D6","v":{"v":0,"d":"0.00"}}]
[null,"Υποδήματα μελλονύμφου 1",{"v":350,"d":"350.00"},{"v":300,"d":"300.00"},{"$f":"'Ένδυση-Δεξίωση-Μουσική-Φωτογρ.'!$C7-'Ένδυση-Δεξίωση-Μουσική-Φωτογρ.'!$D7","v":{"v":50,"d":"50.00"}}]
[null,"Κοσμήματα μελλονύμφου 1",{"v":400,"d":"400.00"},{"v":550,"d":"550.00"},{"$f":"'Ένδυση-Δεξίωση-Μουσική-Φωτογρ.'!$C8-'Ένδυση-Δεξίωση-Μουσική-Φωτογρ.'!$D8","v":{"v":-150,"d":"-150.00 "}}]
[null,"Καλσόν/κάλτσες μελλονύμφου 1",{"v":20,"d":"20.00"},{"v":20,"d":"20.00"},{"$f":"'Ένδυση-Δεξίωση-Μουσική-Φωτογρ.'!$C9-'Ένδυση-Δεξίωση-Μουσική-Φωτογρ.'!$D9","v":{"v":0,"d":"0.00"}}]
[null,"Βέρα μελλονύμφου 2",{"v":300,"d":"300.00"},{"v":250,"d":"250.00"},{"$f":"'Ένδυση-Δεξίωση-Μουσική-Φωτογρ.'!$C10-'Ένδυση-Δεξίωση-Μουσική-Φωτογρ.'!$D10","v":{"v":50,"d":"50.00"}}]
[null,"Νυφικό/κοστούμι μελλονύμφου 2",{"v":300,"d":"300.00"},{"v":350,"d":"350.00"},{"$f":"'Ένδυση-Δεξίωση-Μουσική-Φωτογρ.'!$C11-'Ένδυση-Δεξίωση-Μουσική-Φωτογρ.'!$D11","v":{"v":-50,"d":"-50.00 "}}]
[null,"Πέπλο/Τιάρα μελλονύμφου 2",{"v":500,"d":"500.00"},{"v":500,"d":"500.00"},{"$f":"'Ένδυση-Δεξίωση-Μουσική-Φωτογρ.'!$C12-'Ένδυση-Δεξίωση-Μουσική-Φωτογρ.'!$D12","v":{"v":0,"d":"0.00"}}]
[null,"Υποδήματα μελλονύμφου 2",{"v":200,"d":"200.00"},{"v":175,"d":"175.00"},{"$f":"'Ένδυση-Δεξίωση-Μουσική-Φωτογρ.'!$C13-'Ένδυση-Δεξίωση-Μουσική-Φωτογρ.'!$D13","v":{"v":25,"d":"25.00"}}]
[null,"Κοσμήματα μελλονύμφου 2",{"v":400,"d":"400.00"},{"v":550,"d":"550.00"},{"$f":"'Ένδυση-Δεξίωση-Μουσική-Φωτογρ.'!$C14-'Ένδυση-Δεξίωση-Μουσική-Φωτογρ.'!$D14","v":{"v":-150,"d":"-150.00 "}}]
[null,"Καλσόν/κάλτσες μελλονύμφου 2",{"v":20,"d":"20.00"},{"v":25,"d":"25.00"},{"$f":"'Ένδυση-Δεξίωση-Μουσική-Φωτογρ.'!$C15-'Ένδυση-Δεξίωση-Μουσική-Φωτογρ.'!$D15","v":{"v":-5,"d":"-5.00 "}}]
[null,"Σύνολο ένδυσης",{"$f":"SUBTOTAL(109,Ένδυση[ΕΚΤΙΜΩΜΕΝΑ])","v":{"v":9490,"d":"9,490.00"}},{"$f":"SUBTOTAL(109,Ένδυση[ΠΡΑΓΜΑΤΙΚΑ])","v":{"v":9770,"d":"9,770.00"}},{"$f":"SUBTOTAL(109,Ένδυση[ΕΠΑΝΩ/ΚΑΤΩ])","v":{"v":-280,"d":"-280.00 "}}]
[]
["Η ετικέτα \"Δεξίωση\" βρίσκεται στο κελί στα δεξιά.","Δεξίωση*"]
["Εισαγάγετε τα κόστη δεξίωση, εξαιρουμένου του κόστους ψυχαγωγίας και του κόστους διακόσμησης, στον πίνακα που ξεκινάει από το κελί στα δεξιά. Η επόμενη οδηγία βρίσκεται στο κελί A31.","ΚΑΤΗΓΟΡΙΑ","ΕΚΤΙΜΩΜΕΝΑ","ΠΡΑΓΜΑΤΙΚΑ","ΕΠΑΝΩ/ΚΑΤΩ"]
[null,"Έξοδα αίθουσας",{"v":200,"d":"200.00"},{"v":150,"d":"150.00"},{"$f":"'Ένδυση-Δεξίωση-Μουσική-Φωτογρ.'!$C20-'Ένδυση-Δεξίωση-Μουσική-Φωτογρ.'!$D20","v":{"v":50,"d":"50.00"}}]
[null,"Τραπέζια και καρέκλες",{"v":100,"d":"100.00"},{"v":50,"d":"50.00"},{"$f":"'Ένδυση-Δεξίωση-Μουσική-Φωτογρ.'!$C21-'Ένδυση-Δεξίωση-Μουσική-Φωτογρ.'!$D21","v":{"v":50,"d":"50.00"}}]
[null,"Φαγητό",{"v":0,"d":"0.00"},{"v":0,"d":"0.00"},{"$f":"'Ένδυση-Δεξίωση-Μουσική-Φωτογρ.'!$C22-'Ένδυση-Δεξίωση-Μουσική-Φωτογρ.'!$D22","v":{"v":0,"d":"0.00"}}]
[null,"Ποτά",{"v":0,"d":"0.00"},{"v":0,"d":"0.00"},{"$f":"'Ένδυση-Δεξίωση-Μουσική-Φωτογρ.'!$C23-'Ένδυση-Δεξίωση-Μουσική-Φωτογρ.'!$D23","v":{"v":0,"d":"0.00"}}]
[null,"Τραπεζομάντιλα",{"v":0,"d":"0.00"},{"v":0,"d":"0.00"},{"$f":"'Ένδυση-Δεξίωση-Μουσική-Φωτογρ.'!$C24-'Ένδυση-Δεξίωση-Μουσική-Φωτογρ.'!$D24","v":{"v":0,"d":"0.00"}}]
[null,"Τούρτα",{"v":700,"d":"700.00"},{"v":700,"d":"700.00"},{"$f":"'Ένδυση-Δεξίωση-Μουσική-Φωτογρ.'!$C25-'Ένδυση-Δεξίωση-Μουσική-Φωτογρ.'!$D25","v":{"v":0,"d":"0.00"}}]
[null,"Μπομπονιέρες",{"v":50,"d":"50.00"},{"v":28,"d":"28.00"},{"$f":"'Ένδυση-Δεξίωση-Μουσική-Φωτογρ.'!$C26-'Ένδυση-Δεξίωση-Μουσική-Φωτογρ.'!$D26","v":{"v":22,"d":"22.00"}}]
[null,"Προσωπικό και φιλοδωρήματα",{"v":0,"d":"0.00"},{"v":0,"d":"0.00"},{"$f":"'Ένδυση-Δεξίωση-Μουσική-Φωτογρ.'!$C27-'Ένδυση-Δεξίωση-Μουσική-Φωτογρ.'!$D27","v":{"v":0,"d":"0.00"}}]
[null,"Σύνολο δεξίωσης",{"$f":"SUBTOTAL(109,Δεξίωση[ΕΚΤΙΜΩΜΕΝΑ])","v":{"v":1050,"d":"1,050.00"}},{"$f":"SUBTOTAL(109,Δεξίωση[ΠΡΑΓΜΑΤΙΚΑ])","v":{"v":928,"d":"928.00"}},{"$f":"SUBTOTAL(109,Δεξίωση[ΕΠΑΝΩ/ΚΑΤΩ])","v":{"v":122,"d":"122.00"}}]
[null,"* Εξαιρείται η ψυχαγωγία και η διακόσμηση"]
[]
["Η ετικέτα \"Μουσική\" ή \"Ψυχαγωγία\" βρίσκεται στο κελί στα δεξιά.","Μουσική/Ψυχαγωγία"]
["Εισαγάγετε λεπτομέρειες στον πίνακα \"Μουσική\" που ξεκινάει από το κελί στα δεξιά. Η επόμενη οδηγία βρίσκεται στο κελί A37.","ΚΑΤΗΓΟΡΙΑ","ΕΚΤΙΜΩΜΕΝΑ","ΠΡΑΓΜΑΤΙΚΑ","ΕΠΑΝΩ/ΚΑΤΩ"]
[null,"Μουσικοί για την τελετή",{"v":400,"d":"400.00"},{"v":400,"d":"400.00"},{"$f":"'Ένδυση-Δεξίωση-Μουσική-Φωτογρ.'!$C33-'Ένδυση-Δεξίωση-Μουσική-Φωτογρ.'!$D33","v":{"v":0,"d":"0.00"}}]
[null,"Ορχήστρα/DJ για τη δεξίωση",{"v":200,"d":"200.00"},{"v":0,"d":"0.00"},{"$f":"'Ένδυση-Δεξίωση-Μουσική-Φωτογρ.'!$C34-'Ένδυση-Δεξίωση-Μουσική-Φωτογρ.'!$D34","v":{"v":200,"d":"200.00"}}]
[null,"Σύνολο για Μουσική/Ψυχαγωγία",{"$f":"SUBTOTAL(109,Μουσική[ΕΚΤΙΜΩΜΕΝΑ])","v":{"v":600,"d":"600.00"}},{"$f":"SUBTOTAL(109,Μουσική[ΠΡΑΓΜΑΤΙΚΑ])","v":{"v":400,"d":"400.00"}},{"$f":"SUBTOTAL(109,Μουσική[ΕΠΑΝΩ/ΚΑΤΩ])","v":{"v":200,"d":"200.00"}}]
[]
["Η ετικέτα \"Εκτυπώσεις\" ή \"Επιστολόχαρτα\" βρίσκεται στο κελί στα δεξιά.","Εκτυπώσεις/Επιστολόχαρτα"]
["Εισαγάγετε λεπτομέρειες στον πίνακα \"Εκτυπώσεις\" που ξεκινάει από το κελί στα δεξιά. Η επόμενη οδηγία βρίσκεται στο κελί A50.","ΚΑΤΗΓΟΡΙΑ","ΕΚΤΙΜΩΜΕΝΑ","ΠΡΑΓΜΑΤΙΚΑ","ΕΠΑΝΩ/ΚΑΤΩ"]
[null,"Προσκλητήρια",{"v":500,"d":"500.00"},{"v":450,"d":"450.00"},{"$f":"'Ένδυση-Δεξίωση-Μουσική-Φωτογρ.'!$C39-'Ένδυση-Δεξίωση-Μουσική-Φωτογρ.'!$D39","v":{"v":50,"d":"50.00"}}]
[null,"Ανακοινώσεις",{"v":200,"d":"200.00"},{"v":175,"d":"175.00"},{"$f":"'Ένδυση-Δεξίωση-Μουσική-Φωτογρ.'!$C40-'Ένδυση-Δεξίωση-Μουσική-Φωτογρ.'!$D40","v":{"v":25,"d":"25.00"}}]
[null,"Ευχαριστήριες κάρτες",{"v":100,"d":"100.00"},{"v":100,"d":"100.00"},{"$f":"'Ένδυση-Δεξίωση-Μουσική-Φωτογρ.'!$C41-'Ένδυση-Δεξίωση-Μουσική-Φωτογρ.'!$D41","v":{"v":0,"d":"0.00"}}]
[null,"Προσωπικά επιστολόχαρτα",{"v":0,"d":"0.00"},{"v":0,"d":"0.00"},{"$f":"'Ένδυση-Δεξίωση-Μουσική-Φωτογρ.'!$C42-'Ένδυση-Δεξίωση-Μουσική-Φωτογρ.'!$D42","v":{"v":0,"d":"0.00"}}]
[null,"Βιβλίο προσκεκλημένων",{"v":25,"d":"25.00"},{"v":25,"d":"25.00"},{"$f":"'Ένδυση-Δεξίωση-Μουσική-Φωτογρ.'!$C43-'Ένδυση-Δεξίωση-Μουσική-Φωτογρ.'!$D43","v":{"v":0,"d":"0.00"}}]
[null,"Προγράμματα",{"v":75,"d":"75.00"},{"v":80,"d":"80.00"},{"$f":"'Ένδυση-Δεξίωση-Μουσική-Φωτογρ.'!$C44-'Ένδυση-Δεξίωση-Μουσική-Φωτογρ.'!$D44","v":{"v":-5,"d":"-5.00 "}}]
[null,"Χαρτοπετσέτες δεξίωσης",{"v":35,"d":"35.00"},{"v":40,"d":"40.00"},{"$f":"'Ένδυση-Δεξίωση-Μουσική-Φωτογρ.'!$C45-'Ένδυση-Δεξίωση-Μουσική-Φωτογρ.'!$D45","v":{"v":-5,"d":"-5.00 "}}]
[null,"Σπιρτόκουτα",{"v":0,"d":"0.00"},{"v":0,"d":"0.00"},{"$f":"'Ένδυση-Δεξίωση-Μουσική-Φωτογρ.'!$C46-'Ένδυση-Δεξίωση-Μουσική-Φωτογρ.'!$D46","v":{"v":0,"d":"0.00"}}]
[null,"Καλλιγραφία",{"v":0,"d":"0.00"},{"v":0,"d":"0.00"},{"$f":"'Ένδυση-Δεξίωση-Μουσική-Φωτογρ.'!$C47-'Ένδυση-Δεξίωση-Μουσική-Φωτογρ.'!$D47","v":{"v":0,"d":"0.00"}}]
[null,"Σύνολο για Εκτυπώσεις/Επιστολόχαρτα",{"$f":"SUBTOTAL(109,Εκτυπώσεις[ΕΚΤΙΜΩΜΕΝΑ])","v":{"v":935,"d":"935.00"}},{"$f":"SUBTOTAL(109,Εκτυπώσεις[ΠΡΑΓΜΑΤΙΚΑ])","v":{"v":870,"d":"870.00"}},{"$f":"SUBTOTAL(109,Εκτυπώσεις[ΕΠΑΝΩ/ΚΑΤΩ])","v":{"v":65,"d":"65.00"}}]
[]
["Η ετικέτα \"Φωτογράφιση\" βρίσκεται στο κελί στα δεξιά.","Φωτογράφιση"]
["Εισαγάγετε λεπτομέρειες στον πίνακα \"Φωτογράφιση\" που ξεκινάει από το κελί στα δεξιά.","ΚΑΤΗΓΟΡΙΑ","ΕΚΤΙΜΩΜΕΝΑ","ΠΡΑΓΜΑΤΙΚΑ","ΕΠΑΝΩ/ΚΑΤΩ"]
[null,"Τελικές",{"v":1300,"d":"1,300.00"},{"v":1300,"d":"1,300.00"},{"$f":"'Ένδυση-Δεξίωση-Μουσική-Φωτογρ.'!$C52-'Ένδυση-Δεξίωση-Μουσική-Φωτογρ.'!$D52","v":{"v":0,"d":"0.00"}}]
[null,"Επιπλέον εκτυπώσεις",{"v":25,"d":"25.00"},{"v":25,"d":"25.00"},{"$f":"'Ένδυση-Δεξίωση-Μουσική-Φωτογρ.'!$C53-'Ένδυση-Δεξίωση-Μουσική-Φωτογρ.'!$D53","v":{"v":0,"d":"0.00"}}]
[null,"Άλμπουμ φωτογραφιών",{"v":100,"d":"100.00"},{"v":100,"d":"100.00"},{"$f":"'Ένδυση-Δεξίωση-Μουσική-Φωτογρ.'!$C54-'Ένδυση-Δεξίωση-Μουσική-Φωτογρ.'!$D54","v":{"v":0,"d":"0.00"}}]
[null,"Βιντεοσκόπηση",{"v":200,"d":"200.00"},{"v":150,"d":"150.00"},{"$f":"'Ένδυση-Δεξίωση-Μουσική-Φωτογρ.'!$C55-'Ένδυση-Δεξίωση-Μουσική-Φωτογρ.'!$D55","v":{"v":50,"d":"50.00"}}]
[null,"Σύνολο φωτογράφισης",{"$f":"SUBTOTAL(109,Φωτογράφιση[ΕΚΤΙΜΩΜΕΝΑ])","v":{"v":1625,"d":"1,625.00"}},{"$f":"SUBTOTAL(109,Φωτογράφιση[ΠΡΑΓΜΑΤΙΚΑ])","v":{"v":1575,"d":"1,575.00"}},{"$f":"SUBTOTAL(109,Φωτογράφιση[ΕΠΑΝΩ/ΚΑΤΩ])","v":{"v":50,"d":"50.00"}}]

{"sheet":"Διακοσμ.-Λουλούδια-Δώρα-Ταξίδι","index":3,"n_rows":48,"n_cols":5,"rows_kept":48,"merged":[[8,1,8,4],[9,1,9,4],[18,1,18,4],[27,1,27,4],[34,1,34,4]]}
["Εισαγάγετε τα εκτιμώμενα και τα πραγματικά κόστη για κάθε κατηγορία στους αντίστοιχους πίνακες σε αυτό το φύλλο εργασίας. Το ποσό επάνω ή κάτω υπολογίζεται αυτόματα. Η ετικέτα \"Διακοσμήσεις\" βρίσκεται στο κελί στα δεξιά. Σε διάφορα κελιά σε αυτήν τη στήλη βρίσκονται χρήσιμες οδηγίες για τον τρόπο χρήσης αυτού του φύλλου εργασίας. Πατήστε το κάτω βέλος για να ξεκινήσετε.","Διακοσμήσεις*"]
["Εισαγάγετε τα κόστη διακόσμησης, εξαιρουμένου του κόστους λουλουδιών, στον πίνακα που ξεκινάει από το κελί στα δεξιά. Η επόμενη οδηγία βρίσκεται στο κελί A11.","ΚΑΤΗΓΟΡΙΑ","ΕΚΤΙΜΩΜΕΝΑ","ΠΡΑΓΜΑΤΙΚΑ","ΕΠΑΝΩ/ΚΑΤΩ"]
[null,"Φιόγκοι για καθίσματα",{"v":0,"d":"0.00"},{"v":0,"d":"0.00"},{"$f":"'Διακοσμ.-Λουλούδια-Δώρα-Ταξίδι'!$C3-'Διακοσμ.-Λουλούδια-Δώρα-Ταξίδι'!$D3","v":{"v":0,"d":"0.00"}}]
[null,"Στολισμός τραπεζιού",{"v":300,"d":"300.00"},{"v":320,"d":"320.00"},{"$f":"'Διακοσμ.-Λουλούδια-Δώρα-Ταξίδι'!$C4-'Διακοσμ.-Λουλούδια-Δώρα-Ταξίδι'!$D4","v":{"v":-20,"d":"-20.00 "}}]
[null,"Κεριά",{"v":100,"d":"100.00"},{"v":75,"d":"75.00"},{"$f":"'Διακοσμ.-Λουλούδια-Δώρα-Ταξίδι'!$C5-'Διακοσμ.-Λουλούδια-Δώρα-Ταξίδι'!$D5","v":{"v":25,"d":"25.00"}}]
[null,"Φωτισμός",{"v":100,"d":"100.00"},{"v":75,"d":"75.00"},{"$f":"'Διακοσμ.-Λουλούδια-Δώρα-Ταξίδι'!$C6-'Διακοσμ.-Λουλούδια-Δώρα-Ταξίδι'!$D6","v":{"v":25,"d":"25.00"}}]
[null,"Μπαλόνια",{"v":200,"d":"200.00"},{"v":250,"d":"250.00"},{"$f":"'Διακοσμ.-Λουλούδια-Δώρα-Ταξίδι'!$C7-'Διακοσμ.-Λουλούδια-Δώρα-Ταξίδι'!$D7","v":{"v":-50,"d":"-50.00 "}}]
[null,"Σύνολο για διακοσμήσεις",{"$f":"SUBTOTAL(109,Διακοσμήσεις[ΕΚΤΙΜΩΜΕΝΑ])","v":{"v":700,"d":"700.00"}},{"$f":"SUBTOTAL(109,Διακοσμήσεις[ΠΡΑΓΜΑΤΙΚΑ])","v":{"v":720,"d":"720.00"}},{"$f":"SUBTOTAL(109,Διακοσμήσεις[ΕΠΑΝΩ/ΚΑΤΩ])","v":{"v":-20,"d":"-20.00 "}}]
[null,"*Εξαιρούνται τα λουλούδια"]
[]
["Η ετικέτα \"Λουλούδια\" βρίσκεται στο κελί στα δεξιά.","Λουλούδια"]
["Εισαγάγετε λεπτομέρειες στον πίνακα \"Λουλούδια\" που ξεκινάει από το κελί στα δεξιά. Η επόμενη οδηγία βρίσκεται στο κελί A20.","ΚΑΤΗΓΟΡΙΑ","ΕΚΤΙΜΩΜΕΝΑ","ΠΡΑΓΜΑΤΙΚΑ","ΕΠΑΝΩ/ΚΑΤΩ"]
[null,"Ανθοδέσμες",{"v":500,"d":"500.00"},{"v":450,"d":"450.00"},{"$f":"'Διακοσμ.-Λουλούδια-Δώρα-Ταξίδι'!$C13-'Διακοσμ.-Λουλούδια-Δώρα-Ταξίδι'!$D13","v":{"v":50,"d":"50.00"}}]
[null,"Μπουτονιέρες",{"v":0,"d":"0.00"},{"v":0,"d":"0.00"},{"$f":"'Διακοσμ.-Λουλούδια-Δώρα-Ταξίδι'!$C14-'Διακοσμ.-Λουλούδια-Δώρα-Ταξίδι'!$D14","v":{"v":0,"d":"0.00"}}]
[null,"Κορσάζ",{"v":0,"d":"0.00"},{"v":0,"d":"0.00"},{"$f":"'Διακοσμ.-Λουλούδια-Δώρα-Ταξίδι'!$C15-'Διακοσμ.-Λουλούδια-Δώρα-Ταξίδι'!$D15","v":{"v":0,"d":"0.00"}}]
[null,"Τελετή",{"v":400,"d":"400.00"},{"v":400,"d":"400.00"},{"$f":"'Διακοσμ.-Λουλούδια-Δώρα-Ταξίδι'!$C16-'Διακοσμ.-Λουλούδια-Δώρα-Ταξίδι'!$D16","v":{"v":0,"d":"0.00"}}]
[null,"Δεξίωση",{"v":0,"d":"0.00"},{"v":0,"d":"0.00"},{"$f":"'Διακοσμ.-Λουλούδια-Δώρα-Ταξίδι'!$C17-'Διακοσμ.-Λουλούδια-Δώρα-Ταξίδι'!$D17","v":{"v":0,"d":"0.00"}}]
[null,"Σύνολο για λουλούδια",{"$f":"SUBTOTAL(109,Λουλούδια[ΕΚΤΙΜΩΜΕΝΑ])","v":{"v":900,"d":"900.00"}},{"$f":"SUBTOTAL(109,Λουλούδια[ΠΡΑΓΜΑΤΙΚΑ])","v":{"v":850,"d":"850.00"}},{"$f":"SUBTOTAL(109,Λουλούδια[ΕΠΑΝΩ/ΚΑΤΩ])","v":{"v":50,"d":"50.00"}}]
[]
["Η ετικέτα \"Δώρα\" βρίσκεται στο κελί στα δεξιά.","Δώρα"]
["Εισαγάγετε λεπτομέρειες στον πίνακα \"Δώρα\" που ξεκινάει από το κελί στα δεξιά. Η επόμενη οδηγία βρίσκεται στο κελί A29.","ΚΑΤΗΓΟΡΙΑ","ΕΚΤΙΜΩΜΕΝΑ","ΠΡΑΓΜΑΤΙΚΑ","ΕΠΑΝΩ/ΚΑΤΩ"]
[null,"Προσκεκλημένοι",{"v":1000,"d":"1,000.00"},{"v":400,"d":"400.00"},{"$f":"'Διακοσμ.-Λουλούδια-Δώρα-Ταξίδι'!$C22-'Διακοσμ.-Λουλούδια-Δώρα-Ταξίδι'!$D22","v":{"v":600,"d":"600.00"}}]
[null,"Μελλόνυμφος 1",{"v":150,"d":"150.00"},{"v":200,"d":"200.00"},{"$f":"'Διακοσμ.-Λουλούδια-Δώρα-Ταξίδι'!$C23-'Διακοσμ.-Λουλούδια-Δώρα-Ταξίδι'!$D23","v":{"v":-50,"d":"-50.00 "}}]
[null,"Μελλόνυμφος 2",{"v":150,"d":"150.00"},{"v":200,"d":"200.00"},{"$f":"'Διακοσμ.-Λουλούδια-Δώρα-Ταξίδι'!$C24-'Διακοσμ.-Λουλούδια-Δώρα-Ταξίδι'!$D24","v":{"v":-50,"d":"-50.00 "}}]
[null,"Γονείς",{"v":25,"d":"25.00"},{"v":25,"d":"25.00"},{"$f":"'Διακοσμ.-Λουλούδια-Δώρα-Ταξίδι'!$C25-'Διακοσμ.-Λουλούδια-Δώρα-Ταξίδι'!$D25","v":{"v":0,"d":"0.00"}}]
[null,"Παράνυμφοι/Άλλοι συμμετέχοντες",{"v":20,"d":"20.00"},{"v":250,"d":"250.00"},{"$f":"'Διακοσμ.-Λουλούδια-Δώρα-Ταξίδι'!$C26-'Διακοσμ.-Λουλούδια-Δώρα-Ταξίδι'!$D26","v":{"v":-230,"d":"-230.00 "}}]
[null,"Σύνολο δώρων",{"$f":"SUBTOTAL(109,Δώρα[ΕΚΤΙΜΩΜΕΝΑ])","v":{"v":1345,"d":"1,345.00"}},{"$f":"SUBTOTAL(109,Δώρα[ΠΡΑΓΜΑΤΙΚΑ])","v":{"v":1075,"d":"1,075.00"}},{"$f":"SUBTOTAL(109,Δώρα[ΕΠΑΝΩ/ΚΑΤΩ])","v":{"v":270,"d":"270.00"}}]
[]
["Η ετικέτα \"Ταξίδια/Μετακινήσεις\" βρίσκεται στο κελί στα δεξιά.","Ταξίδια/Μετακινήσεις"]
["Εισαγάγετε λεπτομέρειες στον πίνακα \"Ταξίδια\" που ξεκινάει από το κελί στα δεξιά. Η επόμενη οδηγία βρίσκεται στο κελί A36.","ΚΑΤΗΓΟΡΙΑ","ΕΚΤΙΜΩΜΕΝΑ","ΠΡΑΓΜΑΤΙΚΑ","ΕΠΑΝΩ/ΚΑΤΩ"]
[null,"Λιμουζίνες/Λεωφορεία",{"v":100,"d":"100.00"},{"v":125,"d":"125.00"},{"$f":"'Διακοσμ.-Λουλούδια-Δώρα-Ταξίδι'!$C31-'Διακοσμ.-Λουλούδια-Δώρα-Ταξίδι'!$D31","v":{"v":-25,"d":"-25.00 "}}]
[null,"Στάθμευση",{"v":0,"d":"0.00"},{"v":40,"d":"40.00"},{"$f":"'Διακοσμ.-Λουλούδια-Δώρα-Ταξίδι'!$C32-'Διακοσμ.-Λουλούδια-Δώρα-Ταξίδι'!$D32","v":{"v":-40,"d":"-40.00 "}}]
[null,"Ταξί",{"v":0,"d":"0.00"},{"v":0,"d":"0.00"},{"$f":"'Διακοσμ.-Λουλούδια-Δώρα-Ταξίδι'!$C33-'Διακοσμ.-Λουλούδια-Δώρα-Ταξίδι'!$D33","v":{"v":0,"d":"0.00"}}]
[null,"Σύνολο για Ταξίδια/Μετακινήσεις",{"$f":"SUBTOTAL(109,Ταξίδια[ΕΚΤΙΜΩΜΕΝΑ])","v":{"v":100,"d":"100.00"}},{"$f":"SUBTOTAL(109,Ταξίδια[ΠΡΑΓΜΑΤΙΚΑ])","v":{"v":165,"d":"165.00"}},{"$f":"SUBTOTAL(109,Ταξίδια[ΕΠΑΝΩ/ΚΑΤΩ])","v":{"v":-65,"d":"-65.00 "}}]
[]
["Η ετικέτα \"Άλλα έξοδα\" βρίσκεται στο κελί στα δεξιά.","Άλλα έξοδα"]
["Εισαγάγετε λεπτομέρειες στον πίνακα \"Άλλα έξοδα\" που ξεκινάει στο κελί στα δεξιά.","ΚΑΤΗΓΟΡΙΑ","ΕΚΤΙΜΩΜΕΝΑ","ΠΡΑΓΜΑΤΙΚΑ","ΕΠΑΝΩ/ΚΑΤΩ"]
[null,"Τελετάρχης",{"v":0,"d":"0.00"},{"v":0,"d":"0.00"},{"$f":"'Διακοσμ.-Λουλούδια-Δώρα-Ταξίδι'!$C38-'Διακοσμ.-Λουλούδια-Δώρα-Ταξίδι'!$D38","v":{"v":0,"d":"0.00"}}]
[null,"Χρέωση δημαρχείου/εκκλησίας",{"v":40,"d":"40.00"},{"v":55,"d":"55.00"},{"$f":"'Διακοσμ.-Λουλούδια-Δώρα-Ταξίδι'!$C39-'Διακοσμ.-Λουλούδια-Δώρα-Ταξίδι'!$D39","v":{"v":-15,"d":"-15.00 "}}]
[null,"Συντονιστής γάμου",{"v":0,"d":"0.00"},{"v":0,"d":"0.00"},{"$f":"'Διακοσμ.-Λουλούδια-Δώρα-Ταξίδι'!$C40-'Διακοσμ.-Λουλούδια-Δώρα-Ταξίδι'!$D40","v":{"v":0,"d":"0.00"}}]
[null,"Δείπνο πρόβας",{"v":450,"d":"450.00"},{"v":450,"d":"450.00"},{"$f":"'Διακοσμ.-Λουλούδια-Δώρα-Ταξίδι'!$C41-'Διακοσμ.-Λουλούδια-Δώρα-Ταξίδι'!$D41","v":{"v":0,"d":"0.00"}}]
[null,"Πάρτι αρραβώνα",{"v":20,"d":"20.00"},{"v":50,"d":"50.00"},{"$f":"'Διακοσμ.-Λουλούδια-Δώρα-Ταξίδι'!$C42-'Διακοσμ.-Λουλούδια-Δώρα-Ταξίδι'!$D42","v":{"v":-30,"d":"-30.00 "}}]
[null,"Πάρτι πριν τον γάμο",{"v":30,"d":"30.00"},{"v":20,"d":"20.00"},{"$f":"'Διακοσμ.-Λουλούδια-Δώρα-Ταξίδι'!$C43-'Διακοσμ.-Λουλούδια-Δώρα-Ταξίδι'!$D43","v":{"v":10,"d":"10.00"}}]
[null,"Κομμωτήριο",{"v":45,"d":"45.00"},{"v":46,"d":"46.00"},{"$f":"'Διακοσμ.-Λουλούδια-Δώρα-Ταξίδι'!$C44-'Διακοσμ.-Λουλούδια-Δώρα-Ταξίδι'!$D44","v":{"v":-1,"d":"-1.00 "}}]
[null,"Μπάτσελορ πάρτι",{"v":0,"d":"0.00"},{"v":0,"d":"0.00"},{"$f":"'Διακοσμ.-Λουλούδια-Δώρα-Ταξίδι'!$C45-'Διακοσμ.-Λουλούδια-Δώρα-Ταξίδι'!$D45","v":{"v":0,"d":"0.00"}}]
[null,"Πρόγευμα",{"v":300,"d":"300.00"},{"v":400,"d":"400.00"},{"$f":"'Διακοσμ.-Λουλούδια-Δώρα-Ταξίδι'!$C46-'Διακοσμ.-Λουλούδια-Δώρα-Ταξίδι'!$D46","v":{"v":-100,"d":"-100.00 "}}]
[null,"Δωμάτια ξενοδοχείου",{"v":0,"d":"0.00"},{"v":0,"d":"0.00"},{"$f":"'Διακοσμ.-Λουλούδια-Δώρα-Ταξίδι'!$C47-'Διακοσμ.-Λουλούδια-Δώρα-Ταξίδι'!$D47","v":{"v":0,"d":"0.00"}}]
[null,"Σύνολο άλλων εξόδων",{"$f":"SUBTOTAL(109,ΆλλαΈξοδα[ΕΚΤΙΜΩΜΕΝΑ])","v":{"v":885,"d":"885.00"}},{"$f":"SUBTOTAL(109,ΆλλαΈξοδα[ΠΡΑΓΜΑΤΙΚΑ])","v":{"v":1021,"d":"1,021.00"}},{"$f":"SUBTOTAL(109,ΆλλαΈξοδα[ΕΠΑΝΩ/ΚΑΤΩ])","v":{"v":-136,"d":"-136.00 "}}]